bitfinex-derivatives/quotes_BTCF0:USTF0_20250930
["timestamp","ask_amount","ask_price","bid_price","bid_amount"]
[1759202043022,0.04903,114470.0,114460.0,0.80483683]
[1759202045225,0.04903,114470.0,114460.0,0.81375133]
[1759202046230,0.04903,114470.0,114460.0,0.80483683]
[1759202047630,0.04903,114470.0,114460.0,0.81347046]
[1759202047835,0.0274,114470.0,114460.0,0.81347046]
[1759202048533,0.04903,114470.0,114460.0,0.81347046]
[1759202048832,0.04903,114470.0,114460.0,1.60751683]
[1759202049633,0.04903,114470.0,114460.0,1.56043187]
[1759202049833,0.04903,114470.0,114460.0,1.56896834]
[1759202050836,0.04903,114470.0,114460.0,1.56043187]
[1759202051337,0.04903,114470.0,114460.0,1.60709933]
[1759202051838,0.04903,114470.0,114460.0,1.33492866]
[1759202052137,0.04903,114470.0,114460.0,0.80481933]
[1759202052334,0.04903,114470.0,114460.0,1.60701933]
[1759202052738,0.04903,114470.0,114460.0,0.80481933]
[1759202052936,0.04903,114470.0,114460.0,1.60713933]
[1759202053338,0.04903,114470.0,114460.0,0.80481933]
[1759202054239,0.04903,114470.0,114460.0,1.07665494]
[1759202055940,0.04903,114470.0,114460.0,0.53264866]
[1759202056142,0.04903,114470.0,114460.0,1.07665494]
[1759202057345,0.04903,114470.0,114460.0,1.02958748]
[1759202057945,0.0274,114470.0,114460.0,1.02958748]
[1759202061144,0.0274,114470.0,114460.0,1.09236743]
[1759202062644,0.0274,114470.0,114460.0,1.02958748]
[1759202062841,0.0274,114470.0,114460.0,1.09236743]
[1759202063041,0.027,114470.0,114460.0,1.02958748]
[1759202063342,0.0274,114470.0,114460.0,1.02958748]
[1759202064345,0.0004,114470.0,114460.0,1.02758748]
[1759202064548,0.0194,114470.0,114460.0,1.02858748]
[1759202065040,0.019,114470.0,114460.0,1.02858748]
[1759202065240,0.0194,114470.0,114460.0,1.02858748]
[1759202067150,0.0004,114470.0,114460.0,1.02758748]
[1759202067350,0.0284,114470.0,114460.0,1.02958748]
[1759202070553,0.0004,114470.0,114460.0,1.02758748]
[1759202070852,0.0204,114470.0,114460.0,1.03458748]
[1759202071352,0.0204,114470.0,114460.0,1.39538748]
[1759202071853,0.0204,114470.0,114460.0,1.45816743]
[1759202072054,0.02,114470.0,114460.0,1.45816743]
[1759202072354,0.00620392,114470.0,114460.0,1.47375844]
[1759202072853,0.00620392,114470.0,114460.0,1.39538748]
[1759202073648,0.00620392,114470.0,114460.0,1.79538748]
[1759202073849,0.00620392,114470.0,114460.0,2.59530748]
[1759202074050,0.00580392,114470.0,114460.0,2.59530748]
[1759202074355,0.00620392,114470.0,114460.0,2.59530748]
[1759202074956,0.00620392,114470.0,114460.0,2.59518748]
[1759202075156,0.00620392,114470.0,114460.0,1.79538748]
[1759202075455,0.00620392,114470.0,114460.0,2.65792427]
[1759202075655,0.00620392,114470.0,114460.0,2.65788427]
[1759202079557,0.00620392,114470.0,114460.0,2.25788427]
[1759202079960,0.00620392,114470.0,114460.0,2.19502748]
[1759202081157,0.00620392,114470.0,114460.0,2.25785968]
[1759202081462,0.00620392,114470.0,114460.0,2.19502748]
[1759202082662,0.00620392,114470.0,114460.0,2.27339844]
[1759202083759,0.0916784,114480.0,114470.0,0.1234239]
[1759202083960,0.0916784,114480.0,114470.0,0.81905426]
[1759202085065,0.1066784,114480.0,114470.0,0.81905426]
[1759202085264,0.0916784,114480.0,114470.0,0.83005426]
[1759202085663,0.0916784,114480.0,114470.0,0.55805112]
[1759202085965,0.0916784,114480.0,114470.0,0.83005426]
[1759202086667,0.0916784,114480.0,114470.0,1.62853426]
[1759202087166,0.0916784,114480.0,114470.0,1.62845426]
[1759202087562,0.0916784,114480.0,114470.0,0.83005426]
[1759202087762,0.36368154,114480.0,114470.0,0.83005426]
[1759202087962,0.45097784,114480.0,114470.0,0.55805112]
[1759202088168,0.45097784,114480.0,114470.0,0.76722704]
[1759202088667,1.49656098,114480.0,114470.0,0.011]
[1759202088868,1.51699532,114480.0,114470.0,0.05812476]
[1759202089170,1.51699532,114480.0,114470.0,0.011]
[1759202089668,1.78899846,114480.0,114470.0,0.011]
[1759202091070,1.82040445,114480.0,114470.0,0.011]
[1759202091269,1.78899846,114480.0,114470.0,0.011]
[1759202093172,2.31607532,114480.0,114470.0,0.011]
[1759202094867,2.31607532,114480.0,114470.0,0.03322]
[1759202094868,0.88569274,114480.0,114470.0,0.03322]
[1759202095071,0.75769588,114480.0,114470.0,0.1344043]
[1759202095365,1.91579542,114480.0,114470.0,0.03322]
[1759202095570,1.91607542,114480.0,114470.0,0.03322]
[1759202096164,1.91607542,114480.0,114470.0,0.011]
[1759202096967,1.91607542,114480.0,114470.0,0.03322]
[1759202098263,0.57298914,114480.0,114470.0,0.03322]
[1759202098566,1.91599542,114480.0,114470.0,0.03322]
[1759202100264,2.31599542,114480.0,114470.0,0.011]
[1759202100464,2.31599542,114480.0,114440.0,0.53052706]
[1759202100465,0.0873202,114450.0,114440.0,0.53052706]
[1759202100774,0.75594334,114450.0,114440.0,0.16964201]
[1759202101168,0.75594334,114450.0,114440.0,0.06925971]
[1759202101473,0.75594334,114450.0,114440.0,0.1095478]
[1759202102467,0.75594334,114450.0,114440.0,0.1165478]
[1759202102672,0.75594334,114450.0,114440.0,0.02922]
[1759202102974,1.55678334,114450.0,114440.0,0.04922]
[1759202103870,1.55478334,114450.0,114440.0,0.1095478]
[1759202104071,1.55678334,114450.0,114440.0,0.03522]
[1759202104881,1.55578334,114450.0,114440.0,0.03422]
[1759202105178,0.75694334,114450.0,114440.0,0.03422]
[1759202105473,1.55570334,114450.0,114440.0,0.03422]
[1759202105778,0.75694334,114450.0,114440.0,0.02222]
[1759202105975,0.1229979,114440.0,114430.0,0.02222]
[1759202106172,1.08119981,114440.0,114430.0,0.02222]
[1759202106479,1.88043981,114440.0,114430.0,0.02222]
[1759202106779,1.09012671,114440.0,114430.0,0.02222]
[1759202106978,1.88928671,114440.0,114430.0,0.02222]
[1759202107979,0.54612043,114440.0,114430.0,0.1095556]
[1759202108279,1.88928671,114440.0,114430.0,0.1234356]
[1759202108477,1.88928671,114440.0,114430.0,0.1095556]
[1759202108877,1.61728357,114440.0,114430.0,0.1095556]
[1759202109177,1.63428357,114440.0,114430.0,0.1125556]
[1759202109373,1.90628671,114440.0,114430.0,0.1125556]
[1759202109572,1.90628671,114440.0,114430.0,0.02522]
[1759202112083,1.90628671,114440.0,114430.0,0.003]
[1759202114082,1.10712671,114440.0,114430.0,0.02522]
[1759202114283,1.63429247,114440.0,114430.0,0.02522]
[1759202114482,1.63429247,114440.0,114430.0,0.003]
[1759202115191,1.63409247,114440.0,114430.0,0.003]
[1759202115997,0.56312043,114440.0,114430.0,0.02522]
[1759202116294,1.63389247,114440.0,114430.0,0.02522]
[1759202116487,0.83537247,114440.0,114430.0,0.02522]
[1759202116689,1.63401247,114440.0,114430.0,0.02522]
[1759202116889,0.83537247,114440.0,114430.0,0.02522]
[1759202117190,1.63401247,114440.0,114430.0,0.02522]
[1759202117998,1.36176043,114440.0,114430.0,0.02522]
[1759202118191,1.65436408,114440.0,114430.0,0.02522]
[1759202118797,1.65460408,114440.0,114430.0,0.02522]
[1759202119396,1.65460408,114440.0,114430.0,0.003]
[1759202119695,0.58347204,114440.0,114430.0,0.02622]
[1759202119898,0.58347204,114440.0,114430.0,0.39865794]
[1759202119899,1.36977204,114440.0,114430.0,0.39865794]
[1759202120095,1.37017204,114440.0,114430.0,0.39865794]
[1759202120495,0.57109204,114440.0,114430.0,0.39865794]
[1759202120698,1.37045204,114440.0,114430.0,0.39865794]
[1759202121201,0.57109204,114440.0,114430.0,0.39865794]
[1759202121399,1.37045204,114440.0,114430.0,0.39865794]
[1759202122101,0.57109204,114440.0,114430.0,0.39865794]
[1759202122403,1.37041204,114440.0,114430.0,0.39865794]
[1759202122700,0.57109204,114440.0,114430.0,0.1264059]
[1759202122901,1.29908414,114440.0,114430.0,0.39865794]
[1759202123091,0.13856414,114440.0,114430.0,0.75945794]
[1759202123290,0.10968563,114440.0,114430.0,0.75945794]
[1759202123497,0.10928563,114440.0,114430.0,1.15945794]
[1759202123697,0.10928563,114440.0,114430.0,1.20649765]
[1759202123698,0.08679563,114440.0,114430.0,1.20649765]
[1759202124095,0.48761998,114470.0,114460.0,0.100163]
[1759202124298,0.88818242,114470.0,114460.0,0.123383]
[1759202124497,0.80087682,114470.0,114460.0,0.123383]
[1759202124698,0.88858222,114470.0,114460.0,0.123383]
[1759202125299,1.16083426,114470.0,114460.0,0.123383]
[1759202126002,1.16183426,114470.0,114460.0,0.131383]
[1759202126600,1.16083426,114470.0,114460.0,0.123383]
[1759202126803,1.17983426,114470.0,114460.0,0.125383]
[1759202126999,1.16083426,114470.0,114460.0,0.123383]
[1759202127205,0.88958222,114470.0,114460.0,0.134383]
[1759202127507,1.16183426,114470.0,114460.0,0.134383]
[1759202127706,1.16965938,114470.0,114460.0,0.123383]
[1759202128003,1.17465938,114470.0,114460.0,0.123383]
[1759202128204,0.90240734,114470.0,114460.0,0.123383]
[1759202129507,0.96104734,114470.0,114460.0,0.123383]
[1759202130307,0.16140734,114470.0,114460.0,0.123383]
[1759202130511,0.96088734,114470.0,114460.0,0.123383]
[1759202131205,1.23313938,114470.0,114460.0,0.123383]
[1759202131402,1.23321938,114470.0,114460.0,0.123383]
[1759202131898,0.96096734,114470.0,114460.0,0.123383]
[1759202132099,1.23321938,114470.0,114460.0,0.123383]
[1759202133902,1.23309938,114470.0,114460.0,0.123383]
[1759202134806,0.43365938,114470.0,114460.0,0.123383]
[1759202135202,1.23277938,114470.0,114460.0,0.123383]
[1759202135607,0.43365938,114470.0,114460.0,0.123383]
[1759202135806,1.23273938,114470.0,114460.0,0.123383]
[1759202139612,1.21237694,114470.0,114460.0,0.123383]
[1759202140715,1.58264694,114470.0,114460.0,0.02322]
[1759202145016,0.087313,114460.0,114450.0,0.01285]
[1759202145204,0.0873206,114450.0,114440.0,0.42067651]
[1759202145410,0.38118264,114450.0,114440.0,0.17042131]
[1759202145610,0.1089306,114450.0,114440.0,0.17042131]
[1759202145919,0.9074506,114450.0,114440.0,0.17042131]
[1759202146609,0.9154506,114450.0,114440.0,0.17042131]
[1759202147010,0.8984506,114450.0,114440.0,0.17042131]
[1759202148005,0.1009306,114450.0,114440.0,0.18242131]
[1759202148207,0.82113,114450.0,114440.0,0.54322131]
[1759202148404,0.02261,114450.0,114440.0,0.54322131]
[1759202148807,0.82113,114450.0,114440.0,0.54322131]
[1759202149518,0.82113,114450.0,114440.0,0.81547335]
[1759202150221,0.82113,114450.0,114440.0,0.76844684]
[1759202150718,0.02261,114450.0,114440.0,0.76844684]
[1759202150919,0.82113,114450.0,114440.0,0.76844684]
[1759202151915,0.02261,114450.0,114440.0,0.76844684]
[1759202152108,0.82113,114450.0,114440.0,0.76844684]
[1759202152309,0.82113,114450.0,114440.0,0.83127406]
[1759202153118,0.02261,114450.0,114440.0,0.83127406]
[1759202159515,0.001,114450.0,114440.0,0.83127406]
[1759202159715,0.02225,114450.0,114440.0,0.83127406]
[1759202166721,0.001,114450.0,114440.0,0.83127406]
[1759202167027,0.001,114450.0,114440.0,1.23127406]
[1759202167724,0.0014,114450.0,114440.0,1.23127406]
[1759202169125,0.001,114450.0,114440.0,1.23127406]
[1759202169315,0.0887199,114450.0,114440.0,1.67013722]
[1759202169514,0.0014,114450.0,114440.0,1.75746472]
[1759202169716,0.0014,114450.0,114440.0,0.95902472]
[1759202169919,0.02265,114450.0,114440.0,1.75746472]
[1759202171728,0.02265,114450.0,114440.0,2.02971676]
[1759202171927,0.02265,114450.0,114440.0,1.23127676]
[1759202172127,0.02265,114450.0,114440.0,2.02971676]
[1759202174726,0.02265,114450.0,114440.0,1.23127676]
[1759202174926,0.02265,114450.0,114440.0,2.02967676]
[1759202175126,0.02265,114450.0,114440.0,0.95902472]
[1759202175328,0.02265,114450.0,114440.0,2.02967676]
[1759202176226,0.02265,114450.0,114440.0,2.30165904]
[1759202179733,0.02265,114450.0,114440.0,2.23883182]
[1759202180031,0.02265,114450.0,114440.0,2.30165904]
[1759202181032,0.02265,114450.0,114440.0,2.23883182]
[1759202181331,0.02265,114450.0,114440.0,2.30165904]
[1759202181532,0.02265,114450.0,114440.0,0.95902472]
[1759202181732,0.02265,114450.0,114440.0,2.30165904]
[1759202182029,0.29476716,114450.0,114440.0,2.23883182]
[1759202182530,0.02265,114450.0,114440.0,2.23883182]
[1759202182730,0.02265,114450.0,114440.0,2.23879182]
[1759202183034,0.29476716,114450.0,114440.0,1.96667466]
[1759202183332,0.29476716,114450.0,114440.0,2.23879182]
[1759202184132,0.4014686,114450.0,114440.0,0.03522]
[1759202184339,0.8014686,114450.0,114440.0,0.03522]
[1759202185538,1.5998286,114450.0,114440.0,0.03522]
[1759202186235,1.31478144,114450.0,114440.0,0.04862]
[1759202186438,1.5868986,114450.0,114440.0,0.04862]
[1759202188937,1.58688175,114450.0,114440.0,0.04862]
[1759202189739,1.56624743,114450.0,114440.0,0.04862]
[1759202191142,1.92704743,114450.0,114440.0,0.04862]
[1759202199556,1.52704743,114450.0,114440.0,0.04862]
[1759202200056,1.52704743,114450.0,114440.0,0.03522]
[1759202200650,1.52704743,114450.0,114440.0,0.012]
[1759202200651,1.81982364,114450.0,114440.0,0.012]
[1759202200854,2.21982364,114450.0,114440.0,0.012]
[1759202201258,1.42146364,114450.0,114440.0,0.012]
[1759202201558,2.21974364,114450.0,114440.0,0.012]
[1759202201756,1.81974364,114450.0,114440.0,0.012]
[1759202203154,1.27550932,114450.0,114440.0,0.03374]
[1759202203355,1.54762648,114450.0,114440.0,0.03374]
[1759202203557,1.27550932,114450.0,114440.0,0.03374]
[1759202203858,0.47722932,114450.0,114440.0,0.31925716]
[1759202204059,1.54762648,114450.0,114440.0,0.31925716]
[1759202204260,1.54802648,114450.0,114440.0,0.31925716]
[1759202204656,1.27590932,114450.0,114440.0,0.31925716]
[1759202204856,1.27590932,114450.0,114440.0,0.67869692]
[1759202204857,0.02950952,114450.0,114440.0,0.67869692]
[1759202205060,0.79824,114450.0,114440.0,1.03949692]
[1759202205255,0.885955,114450.0,114440.0,1.03949692]
[1759202206065,0.79864,114450.0,114440.0,1.03949692]
[1759202206863,0.0004,114450.0,114440.0,1.03949692]
[1759202207063,0.79864,114450.0,114440.0,1.03949692]
[1759202207959,0.0004,114450.0,114440.0,1.03949692]
[1759202208167,0.61536,114450.0,114440.0,1.11118071]
[1759202208866,0.61536,114450.0,114440.0,1.10232414]
[1759202209160,0.7986,114450.0,114440.0,1.10232414]
[1759202209468,0.7986,114450.0,114440.0,1.03949692]
[1759202209968,0.0004,114450.0,114440.0,1.03949692]
[1759202212264,0.38301226,114450.0,114440.0,0.40794]
[1759202212460,0.74381226,114450.0,114440.0,0.31925716]
[1759202212766,0.74381226,114450.0,114440.0,0.04714]
[1759202213365,0.38301226,114450.0,114440.0,0.04714]
[1759202213759,0.38301226,114450.0,114440.0,0.31925716]
[1759202215570,1.0757947,114450.0,114440.0,0.012]
[1759202215870,1.43659326,114450.0,114440.0,0.012]
[1759202217361,1.1644761,114450.0,114440.0,0.03527]
[1759202217763,1.6017961,114450.0,114440.0,0.03527]
[1759202217963,1.9625961,114450.0,114440.0,0.04885]
[1759202218671,0.53155894,114450.0,114440.0,0.1361728]
[1759202218868,1.18112766,114450.0,114440.0,0.76908996]
[1759202219069,1.18072766,114450.0,114440.0,0.76908996]
[1759202219369,1.18112766,114450.0,114440.0,0.76908996]
[1759202221071,1.18112766,114450.0,114440.0,0.04885]
[1759202221274,1.20178827,114450.0,114440.0,0.04885]
[1759202221466,1.18112766,114450.0,114440.0,0.04885]
[1759202221666,1.20173985,114450.0,114440.0,0.04885]
[1759202222176,0.40361985,114450.0,114440.0,0.1361659]
[1759202222365,0.1108905,114450.0,114440.0,0.76908306]
[1759202222571,1.18112766,114450.0,114440.0,0.76908306]
[1759202223066,0.02358,114450.0,114440.0,1.04120022]
[1759202223266,0.02358,114450.0,114440.0,1.10402744]
[1759202223470,0.1104884,114450.0,114440.0,0.55979322]
[1759202223772,0.1108884,114450.0,114440.0,1.04120032]
[1759202224173,0.1108884,114450.0,114440.0,0.40965]
[1759202224373,0.38300556,114450.0,114440.0,0.76908316]
[1759202225783,0.38300556,114450.0,114440.0,0.68176716]
[1759202226281,0.38300556,114450.0,114440.0,0.76908326]
[1759202226979,0.1108884,114450.0,114440.0,0.76908326]
[1759202227284,1.18108556,114450.0,114440.0,0.76908326]
[1759202227782,1.18108556,114450.0,114440.0,0.83191048]
[1759202227975,1.18108556,114450.0,114440.0,0.76908326]
[1759202229079,1.18104556,114450.0,114440.0,0.76908326]
[1759202230682,0.38300556,114450.0,114440.0,0.76908326]
[1759202230880,1.18104556,114450.0,114440.0,0.76908326]
[1759202233676,0.9089284,114450.0,114440.0,0.76908326]
[1759202233879,1.18104556,114450.0,114440.0,0.76908326]
[1759202236180,0.9089284,114450.0,114440.0,0.4969661]
[1759202238684,0.92954868,114450.0,114440.0,0.4969661]
[1759202239684,0.9089284,114450.0,114440.0,0.4969661]
[1759202241589,1.18106735,114450.0,114440.0,0.4969661]
[1759202242280,1.94186735,114450.0,114440.0,0.012]
[1759202243085,1.96248547,114450.0,114440.0,0.012]
[1759202243686,1.16444547,114450.0,114440.0,0.03412]
[1759202243886,1.96240547,114450.0,114440.0,0.03412]
[1759202244484,1.16444547,114450.0,114440.0,0.03412]
[1759202244885,1.96240547,114450.0,114440.0,0.012]
[1759202245182,1.96240547,114450.0,114440.0,0.03412]
[1759202246683,1.96240547,114450.0,114440.0,0.012]
[1759202246991,1.96240547,114450.0,114440.0,0.03412]
[1759202247786,0.80364547,114450.0,114440.0,0.03412]
[1759202247986,1.60160547,114450.0,114440.0,0.03412]
[1759202248489,1.96240547,114450.0,114440.0,0.03412]
[1759202251790,1.16444547,114450.0,114440.0,0.03412]
[1759202251991,1.96240547,114450.0,114440.0,0.03412]
[1759202254986,1.16444547,114450.0,114440.0,0.03412]
[1759202255186,1.69026652,114450.0,114440.0,0.03412]
[1759202255595,1.96240547,114450.0,114440.0,0.03412]
[1759202255891,1.96240547,114450.0,114440.0,0.04695]
[1759202256086,1.60160547,114450.0,114440.0,0.40775]
[1759202256495,0.53150652,114450.0,114440.0,0.4950663]
[1759202256693,0.80364547,114450.0,114440.0,0.4950663]
[1759202256886,1.60160547,114450.0,114440.0,0.4950663]
[1759202257088,1.60120547,114450.0,114440.0,0.4950663]
[1759202257287,1.60160547,114450.0,114440.0,0.4950663]
[1759202257791,0.80364547,114450.0,114440.0,0.4950663]
[1759202258085,1.60156547,114450.0,114440.0,0.4950663]
[1759202259395,1.20156547,114450.0,114440.0,0.4950663]
[1759202259894,1.20156547,114450.0,114440.0,0.40775]
[1759202261183,1.20156547,114450.0,114440.0,0.04695]
[1759202261495,1.20156547,114450.0,114440.0,0.40775]
[1759202267594,1.83450442,114450.0,114440.0,0.012]
[1759202270403,1.8138863,114450.0,114440.0,0.012]
[1759202270605,1.83446524,114450.0,114440.0,0.012]
[1759202270798,1.56232629,114450.0,114440.0,0.03397]
[1759202271097,1.20152629,114450.0,114440.0,0.03397]
[1759202271302,1.83446524,114450.0,114440.0,0.012]
[1759202272391,2.23446524,114450.0,114440.0,0.012]
[1759202272795,0.120044,114430.0,114420.0,0.38277]
[1759202272991,1.21060189,114430.0,114420.0,0.38277]
[1759202273207,1.21060189,114430.0,114420.0,0.02197]
[1759202274100,0.0873316,114420.0,114410.0,0.4615351]
[1759202274304,0.38272055,114420.0,114410.0,0.4835051]
[1759202274906,0.37272055,114420.0,114410.0,0.4835051]
[1759202275108,0.0985816,114420.0,114410.0,0.4835051]
[1759202275700,0.0995816,114420.0,114410.0,0.4965051]
[1759202276006,0.10836423,114420.0,114410.0,0.4965051]
[1759202276512,0.12636423,114420.0,114410.0,0.4995051]
[1759202278208,0.12636423,114420.0,114410.0,0.77164405]
[1759202280008,0.12636423,114420.0,114410.0,0.4861051]
[1759202280210,0.39850318,114420.0,114410.0,0.4989592]
[1759202282611,0.12636423,114420.0,114410.0,0.4989592]
[1759202285513,0.92420423,114420.0,114410.0,0.4989592]
[1759202286611,0.12636423,114420.0,114410.0,0.4989592]
[1759202286818,0.92420423,114420.0,114410.0,0.4989592]
[1759202287819,0.12636423,114420.0,114410.0,0.4989592]
[1759202290427,0.05103263,114420.0,114410.0,0.77109815]
[1759202291026,0.13836423,114420.0,114410.0,0.77109815]
[1759202291829,0.04225,114420.0,114410.0,0.77109815]
[1759202292028,0.0194,114420.0,114410.0,1.23392537]
[1759202293034,0.0194,114420.0,114410.0,2.03172537]
[1759202293635,0.0194,114420.0,114410.0,2.30386432]
[1759202293836,0.00519816,114420.0,114410.0,2.31940806]
[1759202294136,0.00479816,114420.0,114410.0,2.31940806]
[1759202294439,0.00519816,114420.0,114410.0,2.04726911]
[1759202294636,0.00519816,114420.0,114410.0,2.03172111]
[1759202296138,0.00519816,114420.0,114410.0,2.03168111]
[1759202296333,0.00519816,114420.0,114410.0,2.30385966]
[1759202297340,0.00519816,114420.0,114410.0,1.50609966]
[1759202297538,0.00519816,114420.0,114410.0,2.30385966]
[1759202299744,0.00519816,114420.0,114410.0,1.50609966]
[1759202299934,0.00519816,114420.0,114410.0,2.30381966]
[1759202301441,0.00519816,114420.0,114410.0,0.96178216]
[1759202301640,0.30012691,114420.0,114410.0,2.03166091]
[1759202302035,0.02796816,114420.0,114410.0,2.03166091]
[1759202302542,0.00519816,114420.0,114410.0,2.03166091]
[1759202303843,0.0008,114430.0,114420.0,0.0873316]
[1759202304050,0.05417599,114470.0,114460.0,0.1218011]
[1759202304345,0.05417599,114470.0,114460.0,1.4637986]
[1759202304346,0.02277,114470.0,114460.0,1.4637986]
[1759202304545,0.07827001,114480.0,114470.0,0.1217934]
[1759202304845,0.0008,114480.0,114470.0,1.0269109]
[1759202305043,0.09101928,114500.0,114490.0,0.1217782]
[1759202305239,0.09181928,114500.0,114490.0,0.75473695]
[1759202305634,0.09181928,114500.0,114490.0,1.0268957]
[1759202305848,0.10056117,114500.0,114490.0,0.75473695]
[1759202306350,0.09181928,114500.0,114490.0,0.75473695]
[1759202307249,0.10052964,114500.0,114490.0,0.75473695]
[1759202308151,0.12852964,114500.0,114490.0,0.75573695]
[1759202308555,0.12952964,114500.0,114490.0,0.75573695]
[1759202308846,0.12952964,114500.0,114490.0,0.75473695]
[1759202309042,0.10052964,114500.0,114490.0,0.75473695]
[1759202309453,0.13452964,114500.0,114490.0,0.75673695]
[1759202310147,0.12581928,114500.0,114490.0,0.75673695]
[1759202316652,0.0348,114500.0,114490.0,1.0288957]
[1759202316856,0.0348,114500.0,114490.0,0.75673695]
[1759202317052,0.034,114500.0,114490.0,0.75673695]
[1759202317253,0.034,114500.0,114490.0,1.0288957]
[1759202317652,0.0344,114500.0,114490.0,0.75673695]
[1759202317854,0.05677,114500.0,114490.0,1.55405695]
[1759202318053,0.05717,114500.0,114490.0,1.55405695]
[1759202319153,0.05717,114500.0,114490.0,0.75673695]
[1759202319455,0.05717,114500.0,114490.0,1.55405695]
[1759202319752,0.05717,114500.0,114490.0,1.55401695]
[1759202320361,0.05717,114500.0,114490.0,1.55568695]
[1759202321860,0.05717,114500.0,114490.0,0.75840695]
[1759202322066,0.05717,114500.0,114490.0,1.55564695]
[1759202322356,0.6887581,114500.0,114490.0,0.39897]
[1759202322561,0.6935581,114500.0,114490.0,0.38562]
[1759202322862,0.6935581,114500.0,114490.0,0.4862482]
[1759202322863,0.1492406,114500.0,114490.0,0.4862482]
[1759202323165,0.6887581,114500.0,114490.0,0.4862482]
[1759202324265,0.7093769,114500.0,114490.0,0.75840695]
[1759202324768,0.43721815,114500.0,114490.0,0.75840695]
[1759202329868,0.41659935,114500.0,114490.0,0.75840695]
[1759202330255,0.43726355,114500.0,114490.0,0.75840695]
[1759202330668,0.41659935,114500.0,114490.0,0.75840695]
[1759202331169,0.41659935,114500.0,114490.0,0.4862482]
[1759202331367,0.43727665,114500.0,114490.0,0.75840695]
[1759202334265,0.46868264,114500.0,114490.0,0.75840695]
[1759202336676,0.46876565,114500.0,114490.0,0.75840695]
[1759202338165,0.44800534,114500.0,114490.0,0.75840695]
[1759202338370,0.44799655,114500.0,114490.0,0.75840695]
[1759202338578,0.4687566,114500.0,114490.0,0.75840695]
[1759202339170,0.44799655,114500.0,114490.0,0.75840695]
[1759202340178,0.41659935,114500.0,114490.0,0.75840695]
[1759202341977,0.1444406,114500.0,114490.0,0.75840695]
[1759202342178,0.41659935,114500.0,114490.0,0.75840695]
[1759202343573,0.43734469,114500.0,114490.0,0.75840695]
[1759202343877,0.41659935,114500.0,114490.0,0.75840695]
[1759202344180,0.43734443,114500.0,114490.0,0.75840695]
[1759202344385,1.14576853,114500.0,114490.0,0.00367]
[1759202344880,1.14576853,114500.0,114490.0,0.02643]
[1759202345082,1.14576853,114500.0,114490.0,0.04022]
[1759202345785,1.14089853,114500.0,114490.0,0.1274982]
[1759202346886,1.14089853,114500.0,114490.0,0.39965695]
[1759202347179,1.93793853,114500.0,114490.0,0.39965695]
[1759202348580,1.93793853,114500.0,114490.0,0.76045695]
[1759202348879,1.90654318,114500.0,114490.0,0.76045695]
[1759202350075,1.98503215,114500.0,114490.0,0.76045695]
[1759202350277,2.21496728,114500.0,114490.0,0.40102]
[1759202350477,2.19146555,114500.0,114490.0,0.00367]
[1759202350983,2.3193068,114500.0,114490.0,0.00367]
[1759202351481,0.9779493,114500.0,114490.0,0.02643]
[1759202351678,1.0092793,114500.0,114490.0,0.76045695]
[1759202351878,0.48443805,114500.0,114490.0,0.76045695]
[1759202352185,1.28103805,114500.0,114490.0,0.67317875]
[1759202352372,1.28143805,114500.0,114490.0,0.67317875]
[1759202352572,1.5535968,114500.0,114490.0,0.67317875]
[1759202352981,1.5535968,114500.0,114490.0,0.40102]
[1759202353179,1.9270968,114500.0,114490.0,0.04022]
[1759202355586,1.9270968,114500.0,114490.0,0.31237875]
[1759202355885,1.5535968,114500.0,114490.0,0.31237875]
[1759202356087,1.58499071,114500.0,114490.0,0.31237875]
[1759202356285,1.31283196,114500.0,114490.0,0.31237875]
[1759202356483,0.51583196,114500.0,114490.0,0.31237875]
[1759202356885,1.31283196,114500.0,114490.0,0.31237875]
[1759202357388,1.26573834,114500.0,114490.0,0.31237875]
[1759202357589,0.46873834,114500.0,114490.0,0.31237875]
[1759202357884,1.26573834,114500.0,114490.0,0.31237875]
[1759202358085,1.26573834,114500.0,114490.0,0.67317875]
[1759202358286,1.26548647,114500.0,114490.0,0.40102]
[1759202360092,0.96218568,114500.0,114490.0,0.40102]
[1759202360291,1.23409256,114500.0,114490.0,0.40102]
[1759202361387,1.23405256,114500.0,114490.0,0.40102]
[1759202362093,0.16518568,114500.0,114490.0,0.76020508]
[1759202362595,0.96174568,114500.0,114490.0,0.76020508]
[1759202362794,0.96214568,114500.0,114490.0,0.76020508]
[1759202363697,0.96214568,114500.0,114490.0,0.4882982]
[1759202369906,0.16518568,114500.0,114490.0,0.4882982]
[1759202370107,0.96210568,114500.0,114490.0,0.4882982]
[1759202373707,0.96206568,114500.0,114490.0,0.4882982]
[1759202374807,0.16518568,114500.0,114490.0,0.4882982]
[1759202375011,0.96206568,114500.0,114490.0,0.4882982]
[1759202378909,0.96206568,114500.0,114490.0,0.40102]
[1759202380210,0.16518568,114500.0,114490.0,0.40102]
[1759202380410,0.96198568,114500.0,114490.0,0.40102]
[1759202380710,0.16518568,114500.0,114490.0,0.40102]
[1759202380911,0.96198568,114500.0,114490.0,0.40102]
[1759202385810,0.96198568,114500.0,114490.0,0.04022]
[1759202386017,0.96198568,114500.0,114490.0,0.40102]
[1759202386515,0.16518568,114500.0,114490.0,0.40102]
[1759202386715,0.96194568,114500.0,114490.0,0.40102]
[1759202387816,0.16518568,114500.0,114490.0,0.76020518]
[1759202388009,0.96150568,114500.0,114490.0,0.76020518]
[1759202388209,0.96190568,114500.0,114490.0,0.76020518]
[1759202389220,0.16518568,114500.0,114490.0,0.76020518]
[1759202391409,0.16518568,114500.0,114490.0,0.4882983]
[1759202391613,0.16518568,114500.0,114490.0,0.76020518]
[1759202395222,0.16518568,114500.0,114490.0,0.4882983]
[1759202395719,0.43709256,114500.0,114490.0,0.40102]
[1759202395918,0.44979256,114500.0,114490.0,0.02643]
[1759202396220,0.84979256,114500.0,114490.0,0.00367]
[1759202397818,0.8676451,114500.0,114490.0,0.00367]
[1759202398116,0.0872859,114480.0,114470.0,0.37415]
[1759202398325,1.21289928,114480.0,114470.0,0.39634]
[1759202398917,1.21289928,114480.0,114470.0,0.38299]
[1759202399112,1.21289928,114480.0,114470.0,0.02219]
[1759202399525,1.23489928,114480.0,114470.0,0.02419]
[1759202400214,1.21289928,114480.0,114470.0,0.02219]
[1759202400415,0.1051736,114470.0,114460.0,0.39634]
[1759202400624,0.39835698,114470.0,114460.0,0.39634]
[1759202401616,0.41835698,114470.0,114460.0,0.39834]
[1759202402825,1.21495698,114470.0,114460.0,0.39834]
[1759202403324,1.21495698,114470.0,114460.0,0.39634]
[1759202403325,1.19495698,114470.0,114460.0,0.39634]
[1759202403524,1.19595698,114470.0,114460.0,0.40234]